bitfinex/quotes_ETHUSD_20250821
["timestamp","ask_amount","ask_price","bid_price","bid_amount"]
[1755736837963,34.27069348,4333.4,4333.3,0.001]
[1755736841375,3.66,4333.3,4333.2,0.001]
[1755736841676,4.76622,4333.3,4333.2,0.001]
[1755736843984,4.76622,4333.3,4332.9,0.001]
[1755736844156,26.84019348,4333.0,4332.9,0.001]
[1755736844483,33.81689348,4333.0,4332.9,0.001]
[1755736844781,34.26669348,4333.0,4332.9,0.001]
[1755736844952,34.52246598,4333.0,4332.9,0.001]
[1755736846873,0.66,4332.9,4332.4,0.001]
[1755736847083,0.66,4332.9,4331.8,0.021]
[1755736847084,3.9475,4332.7,4331.8,0.021]
[1755736847285,29.84019348,4332.2,4331.8,0.021]
[1755736847591,33.81689348,4332.2,4331.8,0.021]
[1755736847947,34.26669348,4332.2,4331.8,0.021]
[1755736849291,29.95539348,4332.2,4331.8,0.021]
[1755736849452,32.87039348,4332.2,4332.1,0.762]
[1755736849647,33.12616598,4332.2,4332.1,0.762]
[1755736850684,3.6892,4332.2,4332.1,0.762]
[1755736854897,0.1152,4332.2,4332.1,0.762]
[1755736858356,3.0,4333.4,4332.1,0.762]
[1755736858557,0.1152,4332.5,4332.2,0.4727]
[1755736858885,0.1152,4332.7,4332.4,0.2883]
[1755736859267,0.1152,4332.7,4332.5,0.4727]
[1755736859614,3.574,4333.5,4332.6,0.761]
[1755736859767,0.1152,4332.9,4332.7,2.83483963]
[1755736859964,0.1152,4332.9,4332.8,0.2883]
[1755736860169,0.1152,4332.9,4332.8,0.761]
[1755736861002,3.574,4334.0,4332.8,0.761]
[1755736861203,0.1152,4333.6,4333.0,26.18019348]
[1755736861501,0.02,4334.8,4333.5,0.2883]
[1755736861985,0.02,4334.8,4333.6,0.4727]
[1755736862185,0.1152,4334.2,4333.7,0.2883]
[1755736862511,0.1152,4334.2,4333.7,0.31137497]
[1755736862811,0.1152,4334.2,4333.7,0.761]
[1755736862970,0.1152,4334.2,4333.7,0.78407497]
[1755736863171,0.4498,4334.7,4333.7,0.761]
[1755736863396,0.1352,4333.8,4333.7,0.761]
[1755736864471,0.02,4333.8,4333.7,0.761]
[1755736864671,0.02,4333.8,4333.7,26.94119348]
[1755736864974,0.02,4333.8,4333.7,3.23833963]
[1755736865168,0.02,4333.8,4333.7,0.761]
[1755736867903,0.02,4333.8,4333.7,0.2883]
[1755736868108,0.02,4333.8,4333.3,0.1152]
[1755736868280,0.02,4333.8,4332.5,26.18019348]
[1755736868604,0.1152,4333.4,4332.6,4.0457]
[1755736868906,0.02,4333.8,4333.3,0.2883]
[1755736869112,0.1152,4333.4,4332.8,0.4727]
[1755736869281,0.02,4333.8,4333.3,0.2883]
[1755736869477,0.1152,4333.4,4333.3,0.2883]
[1755736870077,0.02,4333.8,4333.3,0.761]
[1755736870307,0.1152,4333.6,4333.4,0.4727]
[1755736870615,0.1152,4333.6,4333.5,0.761]
[1755736872417,0.1152,4333.6,4333.5,0.2883]
[1755736874825,0.1152,4333.6,4333.5,0.7518]
[1755736875125,0.1152,4333.6,4333.5,0.2883]
[1755736875425,0.02,4333.8,4333.5,3.11393963]
[1755736875626,0.02,4333.8,4333.6,0.0230755]
[1755736875842,0.02,4333.8,4333.7,0.7771]
[1755736877091,0.02,4333.8,4333.7,0.80017497]
[1755736877289,0.02,4333.8,4333.7,0.91537497]
[1755736877520,0.02,4333.8,4333.7,3.2775146]
[1755736877822,0.02,4333.8,4333.7,3.25443963]
[1755736879391,0.02,4333.8,4333.7,6.82643963]
[1755736880131,0.02,4333.8,4333.7,4.0008]
[1755736880502,0.02,4333.8,4333.7,3.8856]
[1755736881831,0.02,4333.8,4333.7,4.3491]
[1755736883507,0.02,4333.8,4333.7,3.8856]
[1755736885035,0.3222,4333.8,4333.4,0.1152]
[1755736885235,0.1152,4333.5,4333.4,3.572]
[1755736885438,0.1152,4333.5,4333.4,3.8856]
[1755736885810,0.4174,4333.5,4332.9,0.1152]
[1755736886013,0.4174,4333.5,4333.0,4.00252]
[1755736886240,0.1152,4333.5,4333.0,4.00252]
[1755736886435,0.1152,4333.5,4333.1,3.571]
[1755736886637,0.3022,4333.2,4333.1,3.571]
[1755736886938,0.8861,4333.2,4332.4,0.1152]
[1755736887112,0.8861,4333.2,4332.5,3.571]
[1755736887643,0.8861,4333.2,4332.4,0.1152]
[1755736887830,0.8861,4333.2,4332.6,3.571]
[1755736891147,0.4174,4333.2,4332.6,3.571]
[1755736891506,0.1152,4333.2,4333.1,0.3136]
[1755736891712,0.02,4333.8,4333.1,0.3136]
[1755736891930,0.02,4333.8,4333.4,26.18019348]
[1755736892111,0.02,4333.8,4333.7,0.3136]
[1755736895738,0.02,4333.8,4333.7,0.7771]
[1755736895943,0.02,4333.8,4333.7,0.3136]
[1755736899644,0.02,4333.8,4333.4,3.572]
[1755736899851,0.02,4333.8,4333.4,3.571]
[1755736900051,0.02,4333.8,4333.7,0.3136]
[1755736900891,0.022,4333.8,4333.7,0.3136]
[1755736902367,0.022,4333.8,4333.7,0.754]
[1755736902745,0.022,4333.8,4333.7,4.325]
[1755736903262,0.022,4333.8,4333.7,3.8846]
[1755736903466,0.3076,4333.8,4333.7,3.571]
[1755736904067,0.022,4333.8,4333.7,3.571]
[1755736904365,0.022,4333.8,4333.7,3.8641]
[1755736905170,0.022,4333.8,4333.7,4.51624403]
[1755736905368,0.022,4333.8,4333.7,4.95664403]
[1755736906972,0.022,4333.8,4333.7,4.51624403]
[1755736909878,0.022,4333.8,4333.7,4.22214403]
[1755736910577,0.022,4333.8,4333.7,4.51524403]
[1755736912383,0.022,4333.8,4333.7,4.95564403]
[1755736912781,0.022,4333.8,4333.7,4.51524403]
[1755736913788,0.022,4333.8,4333.7,4.538319]
[1755736914078,0.022,4333.8,4333.7,4.51524403]
[1755736914498,0.002,4334.3,4333.8,0.66]
[1755736914652,0.002,4334.3,4333.7,8.73084403]
[1755736914653,0.002,4334.3,4334.2,1.0683]
[1755736914854,0.002,4334.3,4334.2,4.6613723]
[1755736915154,0.002,4334.3,4334.2,5.1017723]
[1755736917370,0.002,4334.3,4334.2,10.44083963]
[1755736917585,0.002,4334.3,4334.2,10.53330663]
[1755736917988,0.002,4334.3,4334.2,12.84053749]
[1755736918193,0.002,4334.3,4334.2,10.53330663]
[1755736918567,0.002,4334.3,4334.2,12.84053749]
[1755736918886,0.002,4334.3,4334.2,10.53330663]
[1755736920391,0.002,4334.3,4334.2,6.96330663]
[1755736920596,0.002,4334.3,4334.2,10.53230663]
[1755736920914,0.002,4334.3,4334.2,6.52290663]
[1755736921092,0.002,4334.3,4334.2,18.59087322]
[1755736921294,0.002,4334.3,4334.2,18.29777322]
[1755736921671,0.002,4334.3,4334.2,18.59087322]
[1755736922071,0.002,4334.3,4334.2,19.59880622]
[1755736922998,0.002,4334.3,4334.2,21.99850508]
[1755736923200,0.002,4334.3,4334.2,24.36064471]
[1755736923414,0.002,4334.3,4334.2,22.05341385]
[1755736923774,0.002,4334.3,4334.2,18.04401385]
[1755736924177,0.2876,4334.3,4334.2,20.65891385]
[1755736924367,0.002,4334.3,4334.2,20.85954585]
[1755736925499,0.002,4334.3,4334.2,20.56644585]
[1755736925678,0.002,4334.3,4334.2,17.29154585]
[1755736925878,0.002,4334.3,4334.2,20.85954585]
[1755736926705,0.002,4334.3,4334.2,17.29154585]
[1755736926903,0.002,4334.3,4334.2,21.51954585]
[1755736927108,0.002,4334.3,4334.2,21.95994585]
[1755736927306,0.002,4334.3,4334.2,24.26717671]
[1755736928436,0.002,4334.7,4334.6,2.96701794]
[1755736928571,0.02,4334.8,4334.6,2.96701794]
[1755736928572,0.02,4334.8,4334.7,5.96696472]
[1755736928771,0.02,4334.8,4334.7,6.70046472]
[1755736930517,0.002,4335.2,4335.1,0.66]
[1755736930673,0.002,4335.2,4335.1,19.06427373]
[1755736930872,0.002,4335.2,4335.1,19.60480622]
[1755736931097,0.002,4335.2,4335.1,21.91155808]
[1755736931805,0.002,4335.2,4335.1,18.43700108]
[1755736932022,0.002,4335.2,4335.1,20.98629633]
[1755736932579,0.002,4335.2,4335.1,20.69319633]
[1755736932786,0.7759,4335.2,4335.1,16.64048406]
[1755736933019,0.7759,4335.2,4335.1,20.86748406]
[1755736933307,0.3056,4335.2,4335.1,20.86748406]
[1755736933701,0.002,4335.2,4335.1,20.86748406]
[1755736934731,0.002,4335.2,4335.1,21.16888406]
[1755736935947,0.002,4335.2,4335.1,20.99459633]
[1755736936112,0.3056,4335.2,4335.1,20.69319633]
[1755736936911,0.7759,4335.2,4335.1,20.69319633]
[1755736937231,0.7759,4335.2,4335.1,17.12619633]
[1755736937232,0.002,4335.2,4335.1,17.12619633]
[1755736937398,0.002,4335.2,4335.1,20.99359633]
[1755736937602,0.002,4335.2,4335.1,23.74874819]
[1755736938142,0.002,4335.2,4335.1,21.44199633]
[1755736938345,0.002,4335.2,4335.1,20.99359633]
[1755736938506,0.002,4335.2,4335.1,23.30034819]
[1755736938701,0.002,4335.2,4335.1,19.73434819]
[1755736938901,0.002,4335.2,4335.1,17.42759633]
[1755736939144,0.7759,4335.2,4335.1,17.30166168]
[1755736939441,0.7759,4335.2,4335.1,20.86766168]
[1755736939801,0.7759,4335.2,4335.1,17.30166168]
[1755736940026,0.7759,4335.2,4335.1,20.86766168]
[1755736940215,0.7759,4335.2,4335.1,17.30166168]
[1755736940415,0.7759,4335.2,4335.1,20.86766168]
[1755736942259,0.002,4335.2,4335.1,20.86766168]
[1755736942461,0.3056,4335.2,4335.1,17.30166168]
[1755736942661,0.3056,4335.2,4335.1,20.86766168]
[1755736942831,0.002,4335.2,4335.1,21.16906168]
[1755736943762,0.002,4335.2,4335.1,21.61746168]
[1755736943965,0.002,4335.2,4335.1,23.92421354]
[1755736944954,0.002,4335.7,4335.6,15.18110622]
[1755736945135,0.002,4335.7,4335.6,22.87210267]
[1755736945335,0.002,4335.7,4335.6,23.43570267]
[1755736946268,0.002,4335.7,4335.6,5.59471062]
[1755736946422,0.002,4335.7,4335.6,33.81771144]
[1755736947060,0.002,4335.7,4335.6,36.12419727]
[1755736947434,0.002,4335.7,4335.6,33.81771144]
[1755736947635,0.002,4335.7,4335.6,36.12419727]
[1755736947834,0.002,4335.7,4335.6,36.57259727]
[1755736948068,0.002,4335.7,4335.6,38.9347369]
[1755736948630,0.002,4335.7,4335.6,38.4863369]
[1755736948938,0.002,4335.7,4335.6,36.17985107]
[1755736949139,0.002,4335.7,4335.6,35.87845107]
[1755736949457,0.002,4335.7,4335.6,35.97088407]
[1755736949860,0.3056,4335.7,4335.6,35.97088407]
[1755736950225,0.7759,4335.7,4335.6,9.13477263]
[1755736950526,0.7759,4335.7,4335.6,7.432633]
[1755736950832,0.7759,4335.7,4335.6,6.6802]
[1755736951342,0.7759,4335.7,4335.6,3.6792]
[1755736953276,0.7759,4335.7,4335.6,0.1152]
[1755736953633,0.7759,4335.7,4335.6,3.6792]
[1755736954957,0.7759,4335.7,4335.1,0.17646535]
[1755736955146,0.4703,4335.6,4335.2,3.6792]
[1755736955352,0.3036,4335.3,4335.2,3.6792]
[1755736955675,0.7739,4335.3,4335.2,3.6792]
[1755736955977,0.002,4335.7,4335.3,3.0]
[1755736956259,0.002,4335.7,4335.5,0.1152]
[1755736956462,0.4723,4335.7,4335.6,3.58706485]
[1755736956962,0.7759,4335.7,4335.6,3.58706485]
[1755736957270,0.7759,4335.7,4335.6,3.564]
[1755736959446,0.3056,4335.7,4335.6,3.58706485]
[1755736959774,0.3056,4335.7,4335.6,8.64402649]
[1755736959775,0.002,4335.7,4335.6,8.64402649]
[1755736959974,0.002,4335.7,4335.6,8.19562649]
[1755736961588,0.002,4335.7,4335.6,8.28807149]
[1755736962780,0.002,4335.7,4335.6,8.74347149]
[1755736963078,0.002,4335.7,4335.6,34.91958293]
[1755736963282,0.002,4335.7,4335.6,37.22606876]
[1755736963655,0.002,4335.7,4335.6,34.91958293]
[1755736964282,0.3167,4335.7,4335.6,4.42267149]
[1755736964449,0.3167,4335.7,4335.6,7.98567149]
[1755736965280,0.3167,4335.7,4335.1,0.17646535]
[1755736965281,0.774,4335.7,4335.1,0.17646535]
[1755736965482,0.3167,4335.7,4335.2,3.563]
[1755736965684,0.4573,4335.6,4335.3,3.0]
[1755736965860,0.3147,4335.4,4335.3,3.0]
[1755736966062,0.772,4335.4,4335.3,3.0]
[1755736966262,0.772,4335.4,4335.3,6.563]
[1755736966689,0.772,4335.4,4335.3,6.564]
[1755736966985,0.772,4335.4,4335.3,3.001]
[1755736967282,0.3147,4335.4,4335.3,6.564]
[1755736968351,0.3147,4335.4,4335.3,7.26971654]
[1755736968554,0.002,4335.7,4335.3,7.57891654]
[1755736968791,0.002,4335.7,4335.5,11.5108932]
[1755736969106,0.772,4335.6,4335.5,11.5108932]
[1755736969294,0.772,4335.6,4335.5,15.0738932]
[1755736969515,0.772,4335.6,4335.5,3.563]
[1755736969995,0.8872,4335.6,4335.5,3.563]
[1755736970497,0.3147,4335.6,4335.5,15.0738932]
[1755736970701,0.002,4335.7,4335.6,3.66]
[1755736970999,0.002,4335.7,4335.6,4.4246]
[1755736971653,0.002,4335.7,4335.6,3.9692]
[1755736971964,0.002,4335.7,4335.6,3.58606485]
[1755736972165,0.002,4335.7,4335.6,17.30509368]
[1755736972386,0.002,4335.7,4335.6,20.28202883]
[1755736973210,0.002,4335.7,4335.6,4.89893563]
[1755736973532,0.3167,4335.7,4335.6,8.46193563]
[1755736974212,0.002,4335.7,4335.6,8.77113563]
[1755736974407,0.002,4335.7,4335.6,8.46193563]
[1755736977723,0.002,4335.7,4335.6,8.77113563]
[1755736978708,0.002,4335.7,4335.6,8.46193563]
[1755736978914,0.3167,4335.7,4335.6,8.46193563]
[1755736979835,0.774,4335.7,4335.6,3.562]
[1755736980487,0.774,4335.7,4335.3,0.001]
[1755736980720,0.1152,4335.4,4335.3,0.001]
[1755736980903,0.4299,4335.4,4335.3,0.001]
[1755736981222,0.8872,4335.4,4335.3,0.001]
[1755736981520,3.8872,4335.4,4335.3,0.001]
[1755736987824,0.8872,4335.4,4335.3,0.001]
[1755736993141,30.06954622,4335.4,4335.3,0.001]
[1755736995303,33.63154622,4335.4,4335.3,0.001]
[1755736996329,18.96867584,4335.4,4335.3,0.001]
[1755736998117,3.1152,4335.4,4335.3,0.001]
[1755736998325,0.1152,4335.4,4335.3,0.3128]
[1755736998620,0.1152,4335.5,4335.3,0.7778]
[1755736998808,0.1152,4335.5,4335.3,0.3128]
[1755736999010,0.1152,4335.5,4335.4,0.465]
[1755736999351,0.002,4335.7,4335.4,12.31934176]
[1755736999501,0.002,4335.7,4335.5,1.23203418]
[1755736999701,0.002,4335.7,4335.6,0.3118]
[1755737000018,0.002,4335.7,4335.6,0.7768]
[1755737000220,0.3079,4335.7,4335.3,0.001]
[1755737000427,0.1152,4335.4,4335.3,0.001]
[1755737000626,0.4211,4335.4,4335.3,0.001]
[1755737001436,0.8718,4335.4,4335.3,0.001]
[1755737002735,0.4211,4335.4,4335.3,0.001]
[1755737003740,0.8718,4335.4,4335.3,0.001]
[1755737004205,0.4211,4335.4,4335.3,0.001]
[1755737004720,0.8718,4335.4,4335.3,0.001]
[1755737006631,0.4211,4335.4,4335.3,0.001]
[1755737006824,0.8718,4335.4,4335.3,0.001]
[1755737007024,0.4211,4335.4,4335.3,0.001]
[1755737007838,0.8718,4335.4,4335.3,0.001]
[1755737008343,0.4211,4335.4,4335.3,0.001]
[1755737011425,0.1152,4335.4,4335.3,0.001]
[1755737012463,0.4211,4335.4,4335.3,0.001]
[1755737012768,0.4211,4335.4,4335.3,0.7778]
[1755737012769,0.1152,4335.4,4335.3,0.7778]
[1755737012977,0.002,4335.7,4335.3,0.7778]
[1755737013136,0.002,4335.7,4335.4,0.48806592]
[1755737013342,0.002,4335.7,4335.6,0.3118]
[1755737013863,0.002,4335.7,4335.6,0.79986485]
[1755737014177,0.002,4335.7,4335.6,26.97841868]
[1755737014382,0.002,4335.7,4335.6,0.3118]
[1755737014870,0.7586,4335.7,4335.3,0.001]
[1755737015033,0.4507,4335.6,4335.3,0.001]
[1755737015239,0.3059,4335.4,4335.3,0.001]
[1755737015664,0.7566,4335.4,4335.3,0.001]
[1755737017233,0.3059,4335.4,4335.3,0.001]
[1755737017434,0.002,4335.7,4335.3,0.001]
[1755737018079,0.002,4335.7,4335.6,0.3118]
[1755737019138,0.7586,4335.7,4335.3,0.001]
[1755737019333,0.4507,4335.6,4335.3,0.001]
[1755737019570,0.3059,4335.4,4335.3,0.001]
[1755737020275,0.7566,4335.4,4335.3,0.001]
[1755737021073,0.3059,4335.4,4335.3,0.001]
[1755737022878,0.4211,4335.4,4335.3,0.001]
[1755737024386,0.1152,4335.4,4335.3,0.2962]
[1755737025194,0.002,4335.7,4335.3,0.2962]
[1755737025195,0.1152,4335.5,4335.3,3.12673963]
[1755737025389,0.1152,4335.5,4335.4,26.67001868]
[1755737025593,0.1172,4335.7,4335.4,26.96521868]
[1755737025804,0.2976,4335.5,4335.3,0.001]
[1755737026176,0.4482,4335.4,4335.3,0.001]
[1755737026378,0.7458,4335.4,4335.3,0.001]
[1755737030512,0.96087222,4335.4,4335.3,0.001]
[1755737031576,7.3308,4335.4,4335.3,0.001]
[1755737032308,3.2976,4335.4,4335.3,0.001]
[1755737032514,3.585,4335.5,4335.3,0.2962]
[1755737032810,0.002,4335.4,4335.3,0.2962]
[1755737033177,0.002,4335.4,4335.3,0.001]
[1755737033374,0.2996,4335.4,4335.3,0.001]
[1755737033625,0.7478,4335.4,4335.3,0.001]
[1755737034318,1.4078,4335.4,4335.3,0.001]
[1755737034478,1.62268793,4335.4,4335.3,0.001]
[1755737035579,1.75153724,4335.4,4335.3,0.001]
[1755737035784,1.86673724,4335.4,4335.3,0.001]
[1755737036182,33.66,4335.3,4334.8,0.001]
[1755737036381,30.27441868,4334.9,4334.8,0.001]
[1755737036598,34.19815592,4334.9,4334.8,0.001]
[1755737037021,34.64635592,4334.9,4334.8,0.001]
[1755737038122,3.66,4334.8,4334.4,0.001]
[1755737038295,30.27441868,4334.5,4334.4,0.001]
[1755737038645,34.06830661,4334.5,4334.4,0.001]
[1755737038937,34.64513622,4334.5,4334.4,0.001]
[1755737040042,34.51650661,4334.5,4334.4,0.001]
[1755737040930,30.82230661,4334.5,4334.4,0.001]
[1755737041094,34.51550661,4334.5,4334.4,0.001]
[1755737041494,34.30061868,4334.5,4334.4,0.001]
[1755737042631,3.4128,4334.5,4334.4,0.001]
[1755737042818,6.9898,4334.5,4334.4,0.001]
[1755737043328,7.6498,4334.5,4334.4,0.001]
[1755737043831,7.6498,4334.5,4334.4,0.7646]
[1755737043832,3.6892,4334.5,4334.4,0.7646]
[1755737044217,3.6892,4334.5,4334.4,0.2962]
[1755737044218,3.6902,4334.5,4334.4,0.2962]
[1755737044420,3.6902,4334.5,4334.4,0.001]
[1755737044892,6.6902,4334.5,4334.4,0.2962]
[1755737045331,6.6892,4334.5,4334.4,0.2962]
[1755737045628,6.6882,4334.5,4334.4,0.2962]
[1755737046189,3.1152,4334.5,4334.4,0.2962]
[1755737046395,6.6882,4334.5,4334.4,0.2962]
[1755737052439,7.4435,4334.5,4334.4,0.001]
[1755737052949,8.1035,4334.5,4334.4,0.001]
[1755737053123,8.3179619,4334.5,4334.4,0.001]
[1755737053832,8.44663083,4334.5,4334.4,0.001]
[1755737055141,8.44664146,4334.5,4334.4,0.001]
[1755737057448,34.64026014,4334.5,4334.4,0.001]
[1755737059149,3.66,4334.4,4333.9,0.001]
[1755737059341,30.28371868,4334.0,4333.9,0.001]
[1755737059545,3.66,4333.9,4333.8,0.021]
[1755737059733,4.75844146,4333.9,4333.8,0.021]
[1755737060731,29.86161868,4333.6,4332.1,0.4621]
[1755737061037,34.19312982,4333.6,4332.1,0.4621]
[1755737061251,3.66,4333.5,4332.1,0.4621]
[1755737061558,3.66,4333.5,4332.1,0.001]
[1755737061559,7.87637777,4333.4,4332.1,0.001]
[1755737061727,3.66,4333.3,4332.1,0.001]
[1755737061926,27.28371868,4332.9,4332.1,0.001]
[1755737062153,34.06339229,4332.9,4332.1,0.001]
[1755737062360,34.51179229,4332.9,4332.1,0.001]
[1755737063255,34.62808008,4332.9,4332.1,0.001]
[1755737063459,34.75689098,4332.9,4332.1,0.001]
[1755737063953,30.61468008,4332.9,4332.1,0.001]
[1755737064149,34.17969121,4332.9,4332.1,0.001]
[1755737064654,34.17969121,4332.9,4332.8,0.3237]
[1755737064655,7.45648779,4332.9,4332.8,0.3237]
[1755737064956,7.45648779,4332.9,4332.8,0.7848]
[1755737064957,6.6802,4332.9,4332.8,0.7848]
[1755737065144,6.79357369,4332.9,4332.8,0.3237]
[1755737066465,6.6802,4332.9,4332.8,0.3237]
[1755737066662,29.31681868,4332.9,4332.8,0.3247]
[1755737066861,3.6812,4332.9,4332.8,0.7858]
[1755737067573,3.6812,4332.9,4332.8,0.3247]
[1755737067770,3.6812,4332.9,4332.8,0.021]
[1755737068149,4.6481,4332.9,4332.8,0.021]
[1755737068472,5.0965,4332.9,4332.8,0.021]
[1755737069392,5.31115164,4332.9,4332.8,0.021]
[1755737069683,5.43994097,4332.9,4332.8,0.021]
[1755737070699,1.00344097,4332.9,4332.8,0.3247]
[1755737070866,4.3412,4332.9,4332.8,0.3247]
[1755737071262,0.7752,4332.9,4332.8,0.3247]
[1755737071467,3.566,4332.9,4332.8,0.3247]
[1755737071777,3.6812,4332.9,4332.8,0.7858]
[1755737072165,6.6812,4332.9,4332.8,0.7858]
[1755737073308,7.6481,4332.9,4332.8,0.021]
[1755737073508,8.31105348,4332.9,4332.8,0.021]
[1755737074195,4.29665348,4332.9,4332.8,0.021]
[1755737074367,7.86265348,4332.9,4332.8,0.021]
[1755737074565,7.6481,4332.9,4332.8,0.021]
[1755737074996,7.86256586,4332.9,4332.8,0.021]
[1755737075397,4.29656586,4332.9,4332.8,0.021]
[1755737075605,3.7752,4332.9,4332.8,0.021]
[1755737075901,7.55566534,4332.9,4332.8,0.021]
[1755737076400,7.55571752,4332.9,4332.8,0.021]
[1755737076601,7.3412,4332.9,4332.8,0.021]
[1755737076973,7.86261479,4332.9,4332.8,0.021]
[1755737077291,4.74501479,4332.9,4332.8,0.021]
[1755737077511,8.31101479,4332.9,4332.8,0.021]
[1755737078586,7.86261479,4332.9,4332.8,0.021]
[1755737079301,7.99145182,4332.9,4332.8,0.021]
[1755737080215,8.43985182,4332.9,4332.8,0.021]
[1755737082241,4.11856538,4332.9,4332.8,0.327]
[1755737082547,7.68456538,4332.9,4332.8,0.021]
[1755737082722,7.98496538,4332.9,4332.8,0.021]
[1755737083036,8.44506538,4332.9,4332.8,0.021]
[1755737083709,3.45856538,4332.9,4332.8,0.327]
[1755737083921,7.02456538,4332.9,4332.8,0.7631]
[1755737084894,7.02456538,4332.9,4332.8,0.327]
[1755737085628,7.02456538,4332.9,4332.8,0.7631]
[1755737085929,3.45856538,4332.9,4332.8,0.7631]
[1755737086430,7.02456538,4332.9,4332.8,0.7631]
[1755737088336,7.02456538,4332.9,4332.8,0.327]
[1755737088496,8.44506538,4332.9,4332.8,0.021]
[1755737090318,8.44564434,4332.9,4332.8,0.021]
[1755737091354,8.31679375,4332.9,4332.8,0.021]
[1755737091531,8.44583029,4332.9,4332.8,0.021]
[1755737092424,8.44582056,4332.9,4332.8,0.021]
[1755737093523,29.86161868,4332.4,4332.3,0.001]
[1755737093701,34.07213924,4332.4,4332.3,0.001]
[1755737094033,34.53223924,4332.4,4332.3,0.001]
[1755737094231,34.64743924,4332.4,4332.3,0.001]
[1755737096945,34.18733924,4332.4,4332.3,0.001]
[1755737097751,34.64743924,4332.4,4332.3,0.001]
[1755737099625,33.88693924,4332.4,4332.3,0.001]
[1755737100527,33.88680924,4332.4,4332.3,0.001]
[1755737100732,33.88680924,4332.4,4332.3,0.307]
[1755737101037,29.66080924,4332.4,4332.3,0.7431]
[1755737101206,33.22680924,4332.4,4332.3,0.7431]
[1755737101609,33.22680924,4332.4,4332.3,0.307]
[1755737101813,34.18720924,4332.4,4332.3,0.001]
[1755737103043,34.64730924,4332.4,4332.3,0.001]
[1755737104320,34.64730924,4332.4,4332.3,0.7431]
[1755737104321,0.45919056,4332.4,4332.3,0.7431]
[1755737104513,3.6812,4332.4,4332.3,0.7431]
[1755737104844,6.89628143,4332.4,4332.3,0.7431]
[1755737105844,6.89643309,4332.4,4332.3,0.7431]
[1755737106742,3.33043309,4332.4,4332.3,0.7431]
[1755737106942,6.89543309,4332.4,4332.3,0.7431]
[1755737108019,6.6802,4332.4,4332.3,0.7431]
[1755737110250,0.002,4333.3,4332.3,0.7431]
[1755737110449,0.002,4333.3,4332.4,0.4361]
[1755737110450,3.565,4333.2,4332.4,0.4361]
[1755737110750,3.21520467,4333.1,4332.4,0.4361]
[1755737111047,3.0,4332.9,4332.4,0.4361]
[1755737111231,3.565,4332.8,4332.4,0.4361]
[1755737111433,3.565,4332.8,4332.7,0.2931]
[1755737111636,3.565,4332.8,4332.7,0.7244]
[1755737111831,0.002,4333.3,4332.7,0.7244]
[1755737112027,3.565,4333.2,4332.7,0.2931]
[1755737112350,3.0,4333.1,4332.8,0.4313]
[1755737112649,3.0,4332.9,4332.8,0.4313]
[1755737112852,0.002,4333.3,4332.8,0.7244]
[1755737113240,0.002,4333.3,4332.9,0.45437923]
[1755737113545,0.002,4333.3,4333.2,0.2931]
[1755737113946,0.002,4333.3,4333.2,0.7244]
[1755737115463,0.002,4333.3,4333.2,3.76961726]
[1755737115628,0.002,4333.3,4333.2,9.05430294]
[1755737116134,0.002,4333.3,4333.2,12.61830294]
[1755737120361,0.002,4333.3,4333.2,12.73350294]
[1755737122761,0.002,4333.7,4333.6,0.66]
[1755737122969,0.002,4333.7,4333.6,29.48534448]
[1755737123263,0.002,4333.7,4333.6,30.00876898]
[1755737124455,0.002,4333.7,4333.6,30.10124598]
[1755737126536,0.002,4333.7,4333.6,33.66224598]
[1755737126844,0.002,4333.7,4333.6,36.02438561]
[1755737127434,0.002,4334.2,4333.6,39.02438561]
[1755737127655,0.002,4334.2,4334.1,32.16890277]
[1755737127863,0.002,4335.9,4334.2,3.0]
[1755737128087,0.002,4335.9,4335.3,30.15471868]
[1755737128253,0.002,4335.9,4335.3,37.75981123]
[1755737128455,0.002,4335.9,4335.3,38.30631123]
[1755737130079,0.002,4335.9,4335.6,2.96648583]
[1755737130286,0.002,4335.9,4335.6,9.84365068]
[1755737130465,0.002,4335.9,4335.6,9.82058583]
[1755737130673,0.002,4335.9,4335.6,12.61402546]
[1755737130986,0.002,4335.9,4335.6,12.72922546]
[1755737136681,0.002,4335.9,4335.6,9.16822546]
[1755737136851,0.002,4335.9,4335.6,12.72722546]
[1755737138080,0.002,4335.9,4335.6,12.81964946]
[1755737140062,0.002,4335.9,4335.7,5.96643264]
[1755737140262,0.002,4335.9,4335.7,34.57041619]
[1755737140464,0.002,4335.9,4335.7,35.00171619]
[1755737140804,0.002,4335.9,4335.7,35.17880224]
[1755737141379,0.002,4335.9,4335.7,35.27122724]
[1755737141765,0.002,4335.9,4335.7,38.82922724]
[1755737142265,0.002,4335.9,4335.7,24.12999647]
[1755737143103,0.002,4335.9,4335.7,20.14069647]
[1755737143265,0.002,4335.9,4335.7,24.16759647]
[1755737145161,0.002,4335.9,4335.7,23.69869647]
[1755737145778,0.002,4335.9,4335.7,24.16759647]
[1755737146487,0.002,4335.9,4335.7,24.16659647]
[1755737146891,0.002,4336.1,4336.0,5.96627306]
[1755737147089,0.002,4336.6,4336.5,5.96600714]